Workbook

Sheet B
B6: The following performances are based on information received and are to be used for guidance only, When comparing the performance of different drying methods
B9: Capacity (FAD) | G9: Capacity | H9: 1332 | I9: cfm | J9: =+H9*0.472 -> 628.704 | K9: Litres/ Sec | M9: =+H9*1.6992 -> 2263.3344 | N9: M3/Hour
B10: Pressure (g) | H10: 102 | I10: psi (g) | J10: =H10/14.5 -> 7.034482759 | K10: bar (g)
B11: Ambient Temperature | H11: 0 | I11: °F | J11: =(H11-32) *(5/9) -> -17.77777778 | K11: °C
B12: Load Factor | D12: 70 | E12: =+D12/100 -> 0.7 | G12: Air Usage | H12: =H9*E12 -> 932.4 | I12: cfm | J12: =+H12*0.472 -> 440.0928 | K12: Litres/ Sec | M12: =+H12*1.6992 -> 1584.33408 | N12: M3/Hour
B13: Weekly Hours | E13: 83
B14: Weeks Per Annum | E14: 46 | G14: Annual operating hours | I14: =+E13*E14 -> 3818
B15: Relative Humidity | D15: 66 | E15: =D15/100 -> 0.66
B17: Water Remaining in Compressed Air
B19: Imperial Units
B20: Drying Method | C20: Dewpoint | D20: Gallons Week | E20: Gallons Annum
B22: No Treatment | C22: =VLOOKUP(VLOOKUP(H11,'Water Content'!B3:C213,2)*(J10+1)*E15,'Water Content'!C3:E213,3) -> 35.6 | D22: =IF(C22<'Water Content'!L4,'Water Content'!L3*0.22,(VLOOKUP('Water Content'!L4,'Water Content'!A3:C213,3)/1000)*0.22*(M9/(J10+1))*E12*E13) -> 20.23864694 | E22: =D22*E14 -> 930.9777591
B23: After Cooler | C23: =H11+18 -> 18 | D23: =((VLOOKUP(C23,'Water Content'!$B$3:$C$213,2)/1000)*(($H$12*1.69811)*$E$13)/(($H$10+14.5)/14.5))*0.22 -> 9.114412409 | E23: =D23*E14 -> 419.2629708
B24: Deliquescent | C24: =C23-11 -> 7 | D24: =((VLOOKUP(C24,'Water Content'!$B$3:$C$213,2)/1000)*(($H$12*1.69811)*$E$13)/(($H$10+14.5)/14.5))*0.22 -> 5.45320759 | E24: =D24*E14 -> 250.8475491
B25: Refrigerant | C25: 37 | D25: =((VLOOKUP(C25,'Water Content'!$B$3:$C$213,2)/1000)*(($H$12*1.69811)*$E$13)/(($H$10+14.5)/14.5))*0.22 -> 20.00772311 | E25: =D25*E14 -> 920.3552631
B26: Desiccant | C26: -40 | D26: =((VLOOKUP(C26,'Water Content'!$B$3:$C$213,2)/1000)*(($H$12*1.69811)*$E$13)/(($H$10+14.5)/14.5))*0.22 -> 0.4294415677 | E26: =D26*E14 -> 19.75431211
B28: Metric Units
B29: Drying Method | C29: Dewpoint | D29: Litres Week | E29: Litres Annum
B31: No Treatment | C31: =5/9*(C22-32) -> 2 | D31: =D22/0.22 -> 91.99384972 | E31: =D31*$E$14 -> 4231.717087
B32: After Cooler | C32: =J11+10 -> -7.777777778 | D32: =D23/0.22 -> 41.42914731 | E32: =D32*$E$14 -> 1905.740776
B33: Deliquescent | C33: =C32-11 -> -18.77777778 | D33: =D24/0.22 -> 24.78730723 | E33: =D33*$E$14 -> 1140.216132
B34: Refrigerant | C34: 3 | D34: =D25/0.22 -> 90.94419596 | E34: =D34*$E$14 -> 4183.433014
B35: Desiccant | C35: -40 | D35: =D26/0.22 -> 1.952007126 | E35: =D35*$E$14 -> 89.7923278
B36: NOTE MOISTURE VAPOUR WILL NOT SEPARATE INTO WATER DROPLETS UNLESS THE AMBIENT TEMPERATURE IS LESS THAN STATED DEWPOINT TEMPERATURE
A76: =D22 -> 20.23864694

Sheet Water Content
A1: Dewpoint | B1: Dewpoint | C1: Ammount of | D1: Dewpoint | E1: Dewpoint
A2: °C | B2: °F | C2: gr/m³ | D2: °C | E2: °F
A3: -70 | B3: =32+((9/5)*A3) -> -94 | C3: 0.00279188847 | D3: -70 | E3: =32+((9/5)*D3) -> -94 | G3: Volume of water contained within incoming air | L3: =B!E15*(VLOOKUP(B!H11,B3:C213,2)/1000)*(B!H12*1.698)*B!E13 -> 91.99384972
A4: -69 | B4: =32+((9/5)*A4) -> -92.2 | C4: 0.003221227806 | D4: -69 | E4: =32+((9/5)*D4) -> -92.2 | G4: Air temperature before after cooler | L4: =B!H11+162 -> 162
A5: -68 | B5: -90.4 | C5: 0.003711926586 | D5: -68 | E5: -90.4
A6: -67 | B6: -88.6 | C6: 0.00427150799 | D6: -67 | E6: -88.6
A7: -66 | B7: -86.8 | C7: 0.004908396835 | D7: -66 | E7: -86.8
A8: -65 | B8: -85 | C8: 0.005632939882 | D8: -65 | E8: -85
A9: -64 | B9: -83.2 | C9: 0.006455285868 | D9: -64 | E9: -83.2
A10: -63 | B10: -81.4 | C10: 0.007388486387 | D10: -63 | E10: -81.4
A11: -62 | B11: -79.6 | C11: 0.008446372774 | D11: -62 | E11: -79.6
A12: -61 | B12: -77.8 | C12: 0.009642515396 | D12: -61 | E12: -77.8
A13: -60 | B13: -76 | C13: 0.01098921226 | D13: -60 | E13: -76
A14: -59 | B14: -74.2 | C14: 0.01251777402 | D14: -59 | E14: -74.2
A15: -58 | B15: -72.4 | C15: 0.01424380803 | D15: -58 | E15: -72.4
A16: -57 | B16: -70.6 | C16: 0.01617460547 | D16: -57 | E16: -70.6
A17: -56 | B17: -68.8 | C17: 0.0183572737 | D17: -56 | E17: -68.8
A18: -55 | B18: -67 | C18: 0.02079828842 | D18: -55 | E18: -67
A19: -54 | B19: -65.2 | C19: 0.02355348918 | D19: -54 | E19: -65.2
A20: -53 | B20: -63.4 | C20: 0.02662844308 | D20: -53 | E20: -63.4
A21: -52 | B21: -61.6 | C21: 0.003007765075 | D21: -52 | E21: -61.6
A22: -51 | B22: -59.8 | C22: 0.03393510546 | D22: -51 | E22: -59.8
A23: -50 | B23: -58 | C23: 0.03824390965 | D23: -50 | E23: -58
A24: -49 | B24: -56.2 | C24: 0.04304639606 | D24: -49 | E24: -56.2
A25: -48 | B25: -54.4 | C25: 0.04841304243 | D25: -48 | E25: -54.4
A26: -47 | B26: -52.6 | C26: 0.05438430939 | D26: -47 | E26: -52.6
A27: -46 | B27: -50.8 | C27: 0.06103813523 | D27: -46 | E27: -50.8
A28: -45 | B28: -49 | C28: 0.06842257356 | D28: -45 | E28: -49
A29: -44 | B29: -47.2 | C29: 0.07663215995 | D29: -44 | E29: -47.2
A30: -43 | B30: -45.4 | C30: 0.08573151656 | D30: -43 | E30: -45.4
A31: -42 | B31: -43.6 | C31: 0.09579352882 | D31: -42 | E31: -43.6
A32: -41 | B32: -41.8 | C32: 0.1069645606 | D32: -41 | E32: -41.8
A33: -40 | B33: -40 | C33: 0.1193419542 | D33: -40 | E33: -40
A34: -39 | B34: -38.2 | C34: 0.1330028638 | D34: -39 | E34: -38.2
A35: -38 | B35: -36.4 | C35: 0.1481153566 | D35: -38 | E35: -36.4
A36: -37 | B36: -34.6 | C36: 0.1647528157 | D36: -37 | E36: -34.6
A37: -36 | B37: -32.8 | C37: 0.1830788336 | D37: -36 | E37: -32.8
A38: -35 | B38: -31 | C38: 0.2033453173 | D38: -35 | E38: -31
A39: -34 | B39: -29.2 | C39: 0.2256185921 | D39: -34 | E39: -29.2
A40: -33 | B40: -27.4 | C40: 0.2500541829 | D40: -33 | E40: -27.4
A41: -32 | B41: -25.6 | C41: 0.2768949634 | D41: -32 | E41: -25.6
A42: -31 | B42: -23.8 | C42: 0.3063797927 | D42: -31 | E42: -23.8
A43: -30 | B43: -22 | C43: 0.3387435984 | D43: -30 | E43: -22
A44: -29 | B44: -20.2 | C44: 0.3742174565 | D44: -29 | E44: -20.2
A45: -28 | B45: -18.4 | C45: 0.4130286705 | D45: -28 | E45: -18.4
A46: -27 | B46: -16.6 | C46: 0.4554889502 | D46: -27 | E46: -16.6
A47: -26 | B47: -14.8 | C47: 0.5019049575 | D47: -26 | E47: -14.8
A48: -25 | B48: -13 | C48: 0.5525784079 | D48: -25 | E48: -13
A49: -24 | B49: -11.2 | C49: 0.6079802522 | D49: -24 | E49: -11.2
A50: -23 | B50: -9.4 | C50: 0.6683138275 | D50: -23 | E50: -9.4
A51: -22 | B51: -7.6 | C51: 0.7341246199 | D51: -22 | E51: -7.6
A52: -21 | B52: -5.8 | C52: 0.8058634522 | D52: -21 | E52: -5.8
A53: -20 | B53: -4 | C53: 0.8840596843 | D53: -20 | E53: -4
A54: -19 | B54: -2.2 | C54: 0.9684663929 | D54: -19 | E54: -2.2
A55: -18 | B55: -0.4 | C55: 1.06071037 | D55: -18 | E55: -0.4
A56: -17 | B56: 1.4 | C56: 1.160699772 | D56: -17 | E56: 1.4
A57: -16 | B57: 3.2 | C57: 1.270030815 | D57: -16 | E57: 3.2
A58: -15 | B58: 5 | C58: 1.387754828 | D58: -15 | E58: 5
A59: -14 | B59: 6.8 | C59: 1.515448199 | D59: -14 | E59: 6.8
A60: -13 | B60: 8.6 | C60: 1.653829482 | D60: -13 | E60: 8.6
A61: -12 | B61: 10.4 | C61: 1.803606216 | D61: -12 | E61: 10.4
A62: -11 | B62: 12.2 | C62: 1.965475139 | D62: -11 | E62: 12.2
A63: -10 | B63: 14 | C63: 2.140122392 | D63: -10 | E63: 14
A64: -9 | B64: 15.8 | C64: 2.329044673 | D64: -9 | E64: 15.8
A65: -8 | B65: 17.6 | C65: 2.532898234 | D65: -8 | E65: 17.6
A66: -7 | B66: 19.4 | C66: 2.753144239 | D66: -7 | E66: 19.4
A67: -6 | B67: 21.2 | C67: 2.991221961 | D67: -6 | E67: 21.2
A68: -5 | B68: =32+((9/5)*A68) -> 23 | C68: 3.246931791 | D68: -5 | E68: =32+((9/5)*D68) -> 23
A69: -4 | B69: 24.8 | C69: 3.522494171 | D69: -4 | E69: 24.8
A70: -3 | B70: 26.6 | C70: 3.818491226 | D70: -3 | E70: 26.6
A71: -2 | B71: 28.4 | C71: 4.137095987 | D71: -2 | E71: 28.4
A72: -1 | B72: 30.2 | C72: 4.480449527 | D72: -1 | E72: 30.2
A73: 0 | B73: 32 | C73: 4.84907377 | D73: 0 | E73: 32
A74: 1 | B74: 33.8 | C74: 5.193650553 | D74: 1 | E74: 33.8
A75: 2 | B75: 35.6 | C75: 5.560152894 | D75: 2 | E75: 35.6
A76: 3 | B76: 37.4 | C76: 5.948342474 | D76: 3 | E76: 37.4
A77: 4 | B77: 39.2 | C77: 6.360331686 | D77: 4 | E77: 39.2
A78: 5 | B78: 41 | C78: 6.79742292 | D78: 5 | E78: 41
A79: 6 | B79: 42.8 | C79: 7.260899895 | D79: 6 | E79: 42.8
A80: 7 | B80: 44.6 | C80: 7.748157781 | D80: 7 | E80: 44.6
A81: 8 | B81: 46.4 | C81: 8.268198134 | D81: 8 | E81: 46.4
A82: 9 | B82: 48.2 | C82: 8.815292342 | D82: 9 | E82: 48.2
A83: 10 | B83: 50 | C83: 9.396811976 | D83: 10 | E83: 50
A84: 11 | B84: 51.8 | C84: 10.01239339 | D84: 11 | E84: 51.8
A85: 12 | B85: 53.6 | C85: 10.66167804 | D85: 12 | E85: 53.6
A86: 13 | B86: 55.4 | C86: 11.34431238 | D86: 13 | E86: 55.4
A87: 14 | B87: 57.2 | C87: 12.06749946 | D87: 14 | E87: 57.2
A88: 15 | B88: 59 | C88: 12.82329143 | D88: 15 | E88: 59
A89: 16 | B89: 60.8 | C89: 13.62634857 | D89: 16 | E89: 60.8
A90: 17 | B90: 62.6 | C90: 14.47618194 | D90: 17 | E90: 62.6
A91: 18 | B91: 64.4 | C91: 15.36486146 | D91: 18 | E91: 64.4
A92: 19 | B92: 66.2 | C92: 16.29941037 | D92: 19 | E92: 66.2
A93: 20 | B93: 68 | C93: 17.28897509 | D93: 20 | E93: 68
A94: 21 | B94: 69.8 | C94: 18.32635959 | D94: 21 | E94: 69.8
A95: 22 | B95: 71.6 | C95: 19.41768971 | D95: 22 | E95: 71.6
A96: 23 | B96: 73.4 | C96: 20.56461533 | D96: 23 | E96: 73.4
A97: 24 | B97: 75.2 | C97: 21.76876407 | D97: 24 | E97: 75.2
A98: 25 | B98: 77 | C98: 23.0339236 | D98: 25 | E98: 77
A99: 26 | B99: 78.8 | C99: 24.36093147 | D99: 26 | E99: 78.8
A100: 27 | B100: 80.6 | C100: 25.75422627 | D100: 27 | E100: 80.6
A101: 28 | B101: 82.4 | C101: 27.21458741 | D101: 28 | E101: 82.4
A102: 29 | B102: 84.2 | C102: 28.7456546 | D102: 29 | E102: 84.2
A103: 30 | B103: 86 | C103: 30.34958893 | D103: 30 | E103: 86
A104: 31 | B104: 87.8 | C104: 32.0299489 | D104: 31 | E104: 87.8
A105: 32 | B105: 89.6 | C105: 33.78953577 | D105: 32 | E105: 89.6
A106: 33 | B106: 91.4 | C106: 35.63111417 | D106: 33 | E106: 91.4
A107: 34 | B107: 93.2 | C107: 37.55741272 | D107: 34 | E107: 93.2
A108: 35 | B108: 95 | C108: 39.57253193 | D108: 35 | E108: 95
A109: 36 | B109: 96.8 | C109: 41.67841507 | D109: 36 | E109: 96.8
A110: 37 | B110: 98.6 | C110: 43.8790777 | D110: 37 | E110: 98.6
A111: 38 | B111: 100.4 | C111: 46.17848377 | D111: 38 | E111: 100.4
A112: 39 | B112: 102.2 | C112: 48.57985173 | D112: 39 | E112: 102.2
A113: 40 | B113: 104 | C113: 51.08566649 | D113: 40 | E113: 104
A114: 41 | B114: 105.8 | C114: 53.69976173 | D114: 41 | E114: 105.8
A115: 42 | B115: 107.6 | C115: 56.43280286 | D115: 42 | E115: 107.6
A116: 43 | B116: 109.4 | C116: 59.27200101 | D116: 43 | E116: 109.4
A117: 44 | B117: 111.2 | C117: 62.23686244 | D117: 44 | E117: 111.2
A118: 45 | B118: 113 | C118: 65.3330171 | D118: 45 | E118: 113
A119: 46 | B119: 114.8 | C119: 68.55243616 | D119: 46 | E119: 114.8
A120: 47 | B120: 116.6 | C120: 71.92782835 | D120: 47 | E120: 116.6
A121: 48 | B121: 118.4 | C121: 75.41722538 | D121: 48 | E121: 118.4
A122: 49 | B122: 120.2 | C122: 79.01956508 | D122: 49 | E122: 120.2
A123: 50 | B123: 122 | C123: 82.80089806 | D123: 50 | E123: 122
A124: 51 | B124: 123.8 | C124: 86.75956696 | D124: 51 | E124: 123.8
A125: 52 | B125: 125.6 | C125: 90.82724817 | D125: 52 | E125: 125.6
A126: 53 | B126: 127.4 | C126: 95.06942062 | D126: 53 | E126: 127.4
A127: 54 | B127: 129.2 | C127: 99.48448347 | D127: 54 | E127: 129.2
A128: 55 | B128: 131 | C128: 104.0708554 | D128: 55 | E128: 131
A129: 56 | B129: 132.8 | C129: 108.8269743 | D129: 56 | E129: 132.8
A130: 57 | B130: 134.6 | C130: 113.7512971 | D130: 57 | E130: 134.6
A131: 58 | B131: 136.4 | C131: 118.8422992 | D131: 58 | E131: 136.4
A132: 59 | B132: =32+((9/5)*A132) -> 138.2 | C132: 124.1637552 | D132: 59 | E132: =32+((9/5)*D132) -> 138.2
A133: 60 | B133: 140 | C133: 129.6485042 | D133: 60 | E133: 140
A134: 61 | B134: 141.8 | C134: 135.3599693 | D134: 61 | E134: 141.8
A135: 62 | B135: 143.6 | C135: 141.2961202 | D135: 62 | E135: 143.6
A136: 63 | B136: 145.4 | C136: 147.3904473 | D136: 63 | E136: 145.4
A137: 64 | B137: 147.2 | C137: 153.7701667 | D137: 64 | E137: 147.2
A138: 65 | B138: 149 | C138: 160.3686234 | D138: 65 | E138: 149
A139: 66 | B139: 150.8 | C139: 167.1838818 | D139: 66 | E139: 150.8
A140: 67 | B140: 152.6 | C140: 174.2140289 | D140: 67 | E140: 152.6
A141: 68 | B141: 154.4 | C141: 181.5207319 | D141: 68 | E141: 154.4
A142: 69 | B142: 156.2 | C142: 189.1015648 | D142: 69 | E142: 156.2
A143: 70 | B143: 158 | C143: 196.8909429 | D143: 70 | E143: 158
A144: =A143+1 -> 71 | B144: 159.8 | C144: 205.7232 | D144: =D143+1 -> 71 | E144: 159.8
A145: =A144+1 -> 72 | B145: 161.6 | C145: 214.40775 | D145: =D144+1 -> 72 | E145: 161.6
A146: 73 | B146: 163.4 | C146: 223.04208 | D146: 73 | E146: 163.4
A147: 74 | B147: 165.2 | C147: 231.6267 | D147: 74 | E147: 165.2
A148: 75 | B148: 167 | C148: 240.162 | D148: 75 | E148: 167
A149: 76 | B149: 168.8 | C149: 250.41127 | D149: 76 | E149: 168.8
A150: 77 | B150: 170.6 | C150: 260.60196 | D150: 77 | E150: 170.6
A151: 78 | B151: 172.4 | C151: 270.73465 | D151: 78 | E151: 172.4
A152: 79 | B152: 174.2 | C152: 280.80975 | D152: 79 | E152: 174.2
A153: 80 | B153: 176 | C153: 290.82782 | D153: 80 | E153: 176
A154: 81 | B154: 177.8 | C154: 302.7843 | D154: 81 | E154: 177.8
A155: 82 | B155: 179.6 | C155: 314.67346 | D155: 82 | E155: 179.6
A156: 83 | B156: 181.4 | C156: 326.49582 | D156: 83 | E156: 181.4
A157: 84 | B157: 183.2 | C157: 338.25198 | D157: 84 | E157: 183.2
A158: 85 | B158: 185 | C158: 349.9425 | D158: 85 | E158: 185
A159: 86 | B159: 186.8 | C159: 363.82477 | D159: 86 | E159: 186.8
A160: 87 | B160: 188.6 | C160: 377.62997 | D160: 87 | E160: 188.6
A161: 88 | B161: 190.4 | C161: 391.35873 | D161: 88 | E161: 190.4
A162: 89 | B162: 192.2 | C162: 405.01163 | D162: 89 | E162: 192.2
A163: 90 | B163: 194 | C163: 418.58932 | D163: 90 | E163: 194
A164: 91 | B164: 195.8 | C164: 434.59216 | D164: 91 | E164: 195.8
A165: 92 | B165: 197.6 | C165: 450.5073 | D165: 92 | E165: 197.6
A166: 93 | B166: 199.4 | C166: 466.3355 | D166: 93 | E166: 199.4
A167: 94 | B167: 201.2 | C167: 482.07748 | D167: 94 | E167: 201.2
A168: 95 | B168: 203 | C168: 497.73398 | D168: 95 | E168: 203
A169: 96 | B169: 204.8 | C169: 516.17065 | D169: 96 | E169: 204.8
A170: 97 | B170: 206.6 | C170: 534.5077 | D170: 97 | E170: 206.6
A171: 98 | B171: 208.4 | C171: 552.74585 | D171: 98 | E171: 208.4
A172: 99 | B172: 210.2 | C172: 570.8861 | D172: 99 | E172: 210.2
A173: 100 | B173: 212 | C173: 588.929 | D173: 100 | E173: 212
A174: 101 | B174: 213.8 | C174: 609.8529 | D174: 101 | E174: 213.8
A175: 102 | B175: 215.6 | C175: 630.66516 | D175: 102 | E175: 215.6
A176: 103 | B176: 217.4 | C176: 651.3668 | D176: 103 | E176: 217.4
A177: 104 | B177: 219.2 | C177: 671.9587 | D177: 104 | E177: 219.2
A178: 105 | B178: 221 | C178: 692.44165 | D178: 105 | E178: 221
A179: 106 | B179: 222.8 | C179: 716.3148 | D179: 106 | E179: 222.8
A180: 107 | B180: 224.6 | C180: 740.0623 | D180: 107 | E180: 224.6
A181: 108 | B181: 226.4 | C181: 763.68524 | D181: 108 | E181: 226.4
A182: 109 | B182: 228.2 | C182: 787.1846 | D182: 109 | E182: 228.2
A183: 110 | B183: 230 | C183: 810.5612 | D183: 110 | E183: 230
A184: 111 | B184: 231.8 | C184: 837.5171 | D184: 111 | E184: 231.8
A185: 112 | B185: 233.6 | C185: 864.3329 | D185: 112 | E185: 233.6
A186: 113 | B186: 235.4 | C186: 891.00995 | D186: 113 | E186: 235.4
A187: 114 | B187: 237.2 | C187: 917.54913 | D187: 114 | E187: 237.2
A188: 115 | B188: 239 | C188: 943.9516 | D188: 115 | E188: 239
A189: 116 | B189: 240.8 | C189: 974.31726 | D189: 116 | E189: 240.8
A190: 117 | B190: 242.6 | C190: 1004.5273 | D190: 117 | E190: 242.6
A191: 118 | B191: 244.4 | C191: 1034.5828 | D191: 118 | E191: 244.4
A192: 119 | B192: 246.2 | C192: 1064.4851 | D192: 119 | E192: 246.2
A193: 120 | B193: 248 | C193: 1094.2352 | D193: 120 | E193: 248
A194: 121 | B194: 249.8 | C194: 1129.726 | D194: 121 | E194: 249.8
A195: =A194+1 -> 122 | B195: 251.6 | C195: 1165.0372 | D195: =D194+1 -> 122 | E195: 251.6
A196: 123 | B196: =32+((9/5)*A196) -> 253.4 | C196: 1200.1702 | D196: =D195+1 -> 123 | E196: =32+((9/5)*D196) -> 253.4
A197: 124 | B197: 255.2 | C197: 1235.126 | D197: 124 | E197: 255.2
A198: 125 | B198: 257 | C198: 1269.9061 | D198: 125 | E198: 257
A199: 126 | B199: 258.8 | C199: 1304.512 | D199: 126 | E199: 258.8
A200: 127 | B200: 260.6 | C200: 1338.9448 | D200: 127 | E200: 260.6
... 13 more rows
